[Event "Early-Titled-Tuesday-Blitz-September-26-2023"]
[Site "Chess.com"]
[Date "2023.09.26"]
[Round "8"]
[White "ploxoi"]
[Black "wadsy27"]
[Result "0-1"]
[WhiteElo "2423"]
[BlackElo "2618"]
[TimeControl "180+1"]
[EndTime "9:26:05 PDT"]
[Termination "wadsy27 won by resignation"]

1. d4 {[%clk 0:03:00.9]} 1... Nf6 {[%clk 0:02:58.3]} 2. c4 {[%clk 0:03:00.6]}
2... c5 {[%clk 0:02:53.5]} 3. d5 {[%clk 0:03:00.2]} 3... e6 {[%clk 0:02:53.7]}
4. Nc3 {[%clk 0:03:00]} 4... exd5 {[%clk 0:02:54.2]} 5. cxd5 {[%clk 0:03:00.9]}
5... d6 {[%clk 0:02:54.6]} 6. g3 {[%clk 0:03:01.6]} 6... g6 {[%clk 0:02:54.6]}
7. Bg2 {[%clk 0:03:02.5]} 7... Bg7 {[%clk 0:02:54.8]} 8. Nf3 {[%clk 0:03:02.7]}
8... O-O {[%clk 0:02:54.4]} 9. O-O {[%clk 0:03:03.3]} 9... a6 {[%clk 0:02:53.7]}
10. a4 {[%clk 0:03:02.8]} 10... Nbd7 {[%clk 0:02:50.9]} 11. h3 {[%clk 0:03:03]}
11... Re8 {[%clk 0:02:48.6]} 12. Nd2 {[%clk 0:03:03.6]} 12... Nh5 {[%clk
0:02:47.2]} 13. e4 {[%clk 0:03:02.2]} 13... Ne5 {[%clk 0:02:44]} 14. Kh2 {[%clk
0:02:47.1]} 14... Nd3 {[%clk 0:02:37.9]} 15. f4 {[%clk 0:02:46.3]} 15... Rb8
{[%clk 0:02:32.9]} 16. Nc4 {[%clk 0:02:43.9]} 16... Nxc1 {[%clk 0:02:32.3]} 17.
Rxc1 {[%clk 0:02:42.7]} 17... b5 {[%clk 0:02:30.3]} 18. Nd2 {[%clk 0:02:37.6]}
18... b4 {[%clk 0:02:19.8]} 19. Ne2 {[%clk 0:02:31]} 19... Bxb2 {[%clk
0:02:18.5]} 20. Rb1 {[%clk 0:02:31.5]} 20... Bg7 {[%clk 0:02:17.7]} 21. Nc4
{[%clk 0:02:30]} 21... a5 {[%clk 0:02:12.3]} 22. g4 {[%clk 0:02:27.4]} 22... Ba6
{[%clk 0:02:12]} 23. Qb3 {[%clk 0:02:24.2]} 23... Nf6 {[%clk 0:02:09.6]} 24. Ng3
{[%clk 0:02:23.4]} 24... Bxc4 {[%clk 0:01:03]} 25. Qxc4 {[%clk 0:02:21.3]} 25...
Nd7 {[%clk 0:01:02.3]} 26. Rfe1 {[%clk 0:02:04.5]} 26... Nb6 {[%clk 0:01:01.8]}
27. Qxc5 {[%clk 0:02:03.6]} 27... dxc5 {[%clk 0:01:00.8]} 0-1

[Event "Early-Titled-Tuesday-Blitz-September-26-2023"]
[Site "Chess.com"]
[Date "2023.09.26"]
[Round "8"]
[White "Sinquefield"]
[Black "halfnatty"]
[Result "0-1"]
[WhiteElo "2552"]
[BlackElo "2741"]
[TimeControl "180+1"]
[EndTime "9:26:24 PDT"]
[Termination "halfnatty won by resignation"]

1. d4 {[%clk 0:03:00.9]} 1... d5 {[%clk 0:02:56.6]} 2. Nf3 {[%clk 0:02:59.8]}
2... Nf6 {[%clk 0:02:55.4]} 3. c3 {[%clk 0:03:00.1]} 3... e6 {[%clk 0:02:55]} 4.
Bg5 {[%clk 0:03:00.6]} 4... c5 {[%clk 0:02:55]} 5. Nbd2 {[%clk 0:03:01.1]} 5...
Nc6 {[%clk 0:02:55.1]} 6. e3 {[%clk 0:03:01.5]} 6... Be7 {[%clk 0:02:53.5]} 7.
Bd3 {[%clk 0:02:59.5]} 7... h6 {[%clk 0:02:52.1]} 8. Bh4 {[%clk 0:02:59.4]} 8...
Qb6 {[%clk 0:02:50.7]} 9. Rb1 {[%clk 0:02:59]} 9... Bd7 {[%clk 0:02:50.6]} 10.
O-O {[%clk 0:02:58.5]} 10... g5 {[%clk 0:02:42.5]} 11. Bg3 {[%clk 0:02:58.1]}
11... cxd4 {[%clk 0:02:37.5]} 12. exd4 {[%clk 0:02:56.8]} 12... Nh5 {[%clk
0:02:37.6]} 13. Be5 {[%clk 0:02:51.2]} 13... Rg8 {[%clk 0:02:36.8]} 14. Re1
{[%clk 0:02:42.2]} 14... g4 {[%clk 0:02:35.4]} 15. Bh7 {[%clk 0:02:37.3]} 15...
Rf8 {[%clk 0:02:31.3]} 16. h3 {[%clk 0:02:26]} 16... gxf3 {[%clk 0:02:14.7]} 17.
Qxf3 {[%clk 0:02:24.9]} 17... Bg5 {[%clk 0:02:12.4]} 18. Nb3 {[%clk 0:02:14.9]}
18... Nxe5 {[%clk 0:02:11.7]} 19. dxe5 {[%clk 0:01:58.4]} 19... Ng7 {[%clk
0:02:11.1]} 20. Nd4 {[%clk 0:01:41.9]} 20... O-O-O {[%clk 0:02:04.2]} 21. b4
{[%clk 0:01:36.4]} 21... f6 {[%clk 0:02:00.5]} 22. Qg3 {[%clk 0:01:00.2]} 22...
fxe5 {[%clk 0:01:58.3]} 23. Nf3 {[%clk 0:01:00.6]} 23... e4 {[%clk 0:01:54.8]}
24. Nd4 {[%clk 0:00:59.1]} 24... Qc7 {[%clk 0:01:40.9]} 0-1

[Event "Early-Titled-Tuesday-Blitz-September-26-2023"]
[Site "Chess.com"]
[Date "2023.09.26"]
[Round "8"]
[White "infinitegiantkiller"]
[Black "JoakimVonAnd"]
[Result "0-1"]
[WhiteElo "2444"]
[BlackElo "2698"]
[TimeControl "180+1"]
[EndTime "9:26:25 PDT"]
[Termination "JoakimVonAnd won by resignation"]

1. Nf3 {[%clk 0:03:00.9]} 1... g6 {[%clk 0:02:59]} 2. g3 {[%clk 0:03:01.8]} 2...
Bg7 {[%clk 0:02:58]} 3. Bg2 {[%clk 0:03:02.7]} 3... d5 {[%clk 0:02:57.3]} 4. O-O
{[%clk 0:03:03.2]} 4... e5 {[%clk 0:02:57.3]} 5. d4 {[%clk 0:03:01.9]} 5... e4
{[%clk 0:02:54.9]} 6. Ne1 {[%clk 0:03:01.8]} 6... Nf6 {[%clk 0:02:47.3]} 7. c4
{[%clk 0:03:01.9]} 7... c6 {[%clk 0:02:43.1]} 8. Nc3 {[%clk 0:03:01.3]} 8... O-O
{[%clk 0:02:42.9]} 9. cxd5 {[%clk 0:03:00.2]} 9... cxd5 {[%clk 0:02:42.7]} 10.
Nc2 {[%clk 0:02:56.9]} 10... Nc6 {[%clk 0:02:41.3]} 11. b4 {[%clk 0:02:48]}
11... Be6 {[%clk 0:02:31.5]} 12. b5 {[%clk 0:02:47.3]} 12... Na5 {[%clk
0:02:30.9]} 13. a4 {[%clk 0:02:45.2]} 13... Rc8 {[%clk 0:02:30.4]} 14. Qe1
{[%clk 0:02:37.1]} 14... Nb3 {[%clk 0:02:06.1]} 15. Ra3 {[%clk 0:02:32.3]} 15...
Nxc1 {[%clk 0:01:58.8]} 16. Qxc1 {[%clk 0:02:33.2]} 16... Qd6 {[%clk 0:01:53.3]}
17. Qb2 {[%clk 0:02:29.8]} 17... Rc4 {[%clk 0:01:44.8]} 18. Rd1 {[%clk
0:02:25.8]} 18... Rfc8 {[%clk 0:01:43.5]} 19. Ne3 {[%clk 0:02:26.2]} 19... Rb4
{[%clk 0:01:33.2]} 20. Qa1 {[%clk 0:02:21.3]} 20... Nd7 {[%clk 0:01:29.4]} 21.
Nb1 {[%clk 0:01:46.4]} 21... Nb6 {[%clk 0:01:05.3]} 22. a5 {[%clk 0:01:39.3]}
22... Nc4 {[%clk 0:01:05.3]} 23. Nxc4 {[%clk 0:01:39.4]} 23... Rbxc4 {[%clk
0:01:06.2]} 24. e3 {[%clk 0:01:36.8]} 24... Rc1 {[%clk 0:01:05.7]} 0-1

[Event "Early-Titled-Tuesday-Blitz-September-26-2023"]
[Site "Chess.com"]
[Date "2023.09.26"]
[Round "8"]
[White "elegant285"]
[Black "Fore_Man"]
[Result "1-0"]
[WhiteElo "2396"]
[BlackElo "2281"]
[TimeControl "180+1"]
[EndTime "9:26:33 PDT"]
[Termination "elegant285 won by checkmate"]

1. d4 {[%clk 0:03:00.9]} 1... Nf6 {[%clk 0:02:56.4]} 2. Nf3 {[%clk 0:03:01]}
2... e6 {[%clk 0:02:57]} 3. Bg5 {[%clk 0:03:01.2]} 3... Be7 {[%clk 0:02:56.3]}
4. Nbd2 {[%clk 0:03:00.3]} 4... c5 {[%clk 0:02:56.8]} 5. c3 {[%clk 0:03:00]}
5... h6 {[%clk 0:02:55.9]} 6. Bxf6 {[%clk 0:03:00]} 6... Bxf6 {[%clk 0:02:56.8]}
7. e4 {[%clk 0:03:00.9]} 7... cxd4 {[%clk 0:02:56.8]} 8. cxd4 {[%clk 0:03:01]}
8... d6 {[%clk 0:02:57.4]} 9. Bd3 {[%clk 0:03:00.3]} 9... Nd7 {[%clk 0:02:57.6]}
10. O-O {[%clk 0:03:00.1]} 10... O-O {[%clk 0:02:57.4]} 11. Qe2 {[%clk
0:03:00.6]} 11... b6 {[%clk 0:02:57.8]} 12. e5 {[%clk 0:02:59.2]} 12... dxe5
{[%clk 0:02:57.7]} 13. dxe5 {[%clk 0:03:00.1]} 13... Be7 {[%clk 0:02:58.3]} 14.
Qe4 {[%clk 0:03:00.3]} 14... g6 {[%clk 0:02:54.9]} 15. Qxa8 {[%clk 0:03:00]}
15... Nc5 {[%clk 0:02:53.8]} 16. Be4 {[%clk 0:02:55.1]} 16... Qc7 {[%clk
0:02:49]} 17. Qc6 {[%clk 0:02:53.5]} 17... Qb8 {[%clk 0:02:46.5]} 18. Rfe1
{[%clk 0:02:37.9]} 18... Bd7 {[%clk 0:02:44]} 19. Qa8 {[%clk 0:02:32.9]} 19...
Qc7 {[%clk 0:02:44.1]} 20. Qxf8+ {[%clk 0:02:28.4]} 20... Bxf8 {[%clk 0:02:45]}
21. Bc2 {[%clk 0:02:23.8]} 21... Na4 {[%clk 0:02:37.3]} 22. Rac1 {[%clk
0:02:18.1]} 22... Qd8 {[%clk 0:02:34.8]} 23. Ne4 {[%clk 0:02:08.2]} 23... Nxb2
{[%clk 0:02:21.3]} 24. Rb1 {[%clk 0:01:47.9]} 24... Nc4 {[%clk 0:02:18.2]} 25.
Rbd1 {[%clk 0:01:44]} 25... Kg7 {[%clk 0:02:14.4]} 26. Bb3 {[%clk 0:01:37.6]}
26... b5 {[%clk 0:02:08.7]} 27. Nf6 {[%clk 0:01:35.5]} 27... Nxe5 {[%clk
0:02:04.6]} 28. Nxe5 {[%clk 0:01:32.2]} 28... Qxf6 {[%clk 0:02:03.5]} 29. Rxd7
{[%clk 0:01:28.9]} 29... Kg8 {[%clk 0:01:56.2]} 30. Rxf7 {[%clk 0:01:27.7]}
30... Qg5 {[%clk 0:01:56.7]} 31. Bxe6 {[%clk 0:01:20.5]} 31... Kh8 {[%clk
0:01:55.4]} 32. Rxf8+ {[%clk 0:01:20.4]} 32... Kg7 {[%clk 0:01:55.9]} 33. Rg8+
{[%clk 0:01:19]} 33... Kh7 {[%clk 0:01:56.3]} 34. Re8 {[%clk 0:01:09.7]} 34...
Qd2 {[%clk 0:01:55.6]} 35. Nf3 {[%clk 0:01:09.7]} 35... Qd6 {[%clk 0:01:53.2]}
36. Bb3 {[%clk 0:01:09.4]} 36... h5 {[%clk 0:01:50.6]} 37. R1e7+ {[%clk
0:01:08.4]} 37... Kh6 {[%clk 0:01:51.1]} 38. Rh8# {[%clk 0:01:08.2]} 1-0

[Event "Early-Titled-Tuesday-Blitz-September-26-2023"]
[Site "Chess.com"]
[Date "2023.09.26"]
[Round "8"]
[White "Igrok3069"]
[Black "goodluck06"]
[Result "1-0"]
[WhiteElo "2873"]
[BlackElo "2667"]
[TimeControl "180+1"]
[EndTime "9:26:38 PDT"]
[Termination "Igrok3069 won by resignation"]

1. d4 {[%clk 0:03:00.9]} 1... d5 {[%clk 0:02:59.3]} 2. c4 {[%clk 0:02:53.3]}
2... e6 {[%clk 0:02:59.2]} 3. Nc3 {[%clk 0:02:52.1]} 3... Nf6 {[%clk 0:02:59.7]}
4. cxd5 {[%clk 0:02:51.4]} 4... exd5 {[%clk 0:03:00.6]} 5. Bg5 {[%clk
0:02:50.6]} 5... Be7 {[%clk 0:02:59.3]} 6. e3 {[%clk 0:02:50.3]} 6... Bg4 {[%clk
0:02:59.1]} 7. Qb3 {[%clk 0:02:48.2]} 7... Nbd7 {[%clk 0:02:46.2]} 8. h3 {[%clk
0:02:47.6]} 8... Be6 {[%clk 0:02:45.6]} 9. Nge2 {[%clk 0:02:40.4]} 9... c5
{[%clk 0:02:21.3]} 10. Nf4 {[%clk 0:02:38.9]} 10... c4 {[%clk 0:02:10.8]} 11.
Qc2 {[%clk 0:02:34.6]} 11... O-O {[%clk 0:02:01]} 12. Be2 {[%clk 0:02:31]} 12...
Qa5 {[%clk 0:01:56.9]} 13. Bf3 {[%clk 0:02:26.5]} 13... b5 {[%clk 0:01:48.5]}
14. O-O {[%clk 0:01:53.9]} 14... b4 {[%clk 0:01:48.8]} 15. Ncxd5 {[%clk
0:01:54]} 15... Nxd5 {[%clk 0:01:43.1]} 16. Bxe7 {[%clk 0:01:51.1]} 16... Nxe7
{[%clk 0:01:41.7]} 17. Bxa8 {[%clk 0:01:49.7]} 17... Rxa8 {[%clk 0:01:42.6]} 18.
Nxe6 {[%clk 0:01:48.3]} 18... fxe6 {[%clk 0:01:43]} 19. Qxc4 {[%clk 0:01:49]}
19... Qd5 {[%clk 0:01:29.1]} 20. Rac1 {[%clk 0:01:47]} 20... Ng6 {[%clk
0:01:28]} 21. Qxd5 {[%clk 0:01:46.2]} 21... exd5 {[%clk 0:01:28.2]} 22. Rc7
{[%clk 0:01:45.9]} 22... Ngf8 {[%clk 0:01:22.6]} 23. Rfc1 {[%clk 0:01:45.1]}
23... a5 {[%clk 0:01:19]} 24. Rc8 {[%clk 0:01:44.2]} 24... Ra6 {[%clk
0:01:16.9]} 25. R1c6 {[%clk 0:01:44.2]} 25... Rxc6 {[%clk 0:01:10.1]} 26. Rxc6
{[%clk 0:01:43.7]} 26... Kf7 {[%clk 0:01:07.6]} 27. Ra6 {[%clk 0:01:42]} 1-0

[Event "Early-Titled-Tuesday-Blitz-September-26-2023"]
[Site "Chess.com"]
[Date "2023.09.26"]
[Round "8"]
[White "LangesNasenhaar"]
[Black "KatakuriDono"]
[Result "1-0"]
[WhiteElo "2482"]
[BlackElo "2327"]
[TimeControl "180+1"]
[EndTime "9:26:53 PDT"]
[Termination "LangesNasenhaar won by resignation"]

1. d4 {[%clk 0:02:55.7]} 1... d5 {[%clk 0:03:00.1]} 2. Nc3 {[%clk 0:02:56]} 2...
Nf6 {[%clk 0:02:59.5]} 3. Bf4 {[%clk 0:02:56.5]} 3... c6 {[%clk 0:02:56.7]} 4.
e3 {[%clk 0:02:56.4]} 4... g6 {[%clk 0:02:56.3]} 5. Nf3 {[%clk 0:02:55.8]} 5...
Bg7 {[%clk 0:02:56.6]} 6. h4 {[%clk 0:02:55.9]} 6... h5 {[%clk 0:02:54.7]} 7.
Ne5 {[%clk 0:02:54.1]} 7... Nbd7 {[%clk 0:02:52.2]} 8. f3 {[%clk 0:02:54.3]}
8... Nf8 {[%clk 0:02:34.2]} 9. Qd2 {[%clk 0:02:53.3]} 9... Ne6 {[%clk
0:02:33.7]} 10. Bg5 {[%clk 0:02:40.7]} 10... Nxg5 {[%clk 0:02:30.3]} 11. hxg5
{[%clk 0:02:40.9]} 11... Nd7 {[%clk 0:02:29.9]} 12. f4 {[%clk 0:02:33.9]} 12...
Nxe5 {[%clk 0:02:29.6]} 13. dxe5 {[%clk 0:02:34.1]} 13... b5 {[%clk 0:02:20.7]}
14. O-O-O {[%clk 0:02:33.5]} 14... b4 {[%clk 0:02:17]} 15. Na4 {[%clk
0:02:29.8]} 15... Qa5 {[%clk 0:02:16.3]} 16. b3 {[%clk 0:02:29.3]} 16... e6
{[%clk 0:02:14.3]} 17. Be2 {[%clk 0:02:18.1]} 17... Bd7 {[%clk 0:02:13.7]} 18.
Kb1 {[%clk 0:01:58.7]} 18... c5 {[%clk 0:02:10.6]} 19. Nb2 {[%clk 0:01:58.9]}
19... Qa3 {[%clk 0:01:54]} 20. e4 {[%clk 0:01:53.1]} 20... Bc6 {[%clk 0:01:51]}
21. exd5 {[%clk 0:01:50.7]} 21... Bxd5 {[%clk 0:01:42.7]} 22. Bb5+ {[%clk
0:01:50.3]} 22... Kf8 {[%clk 0:01:42.5]} 23. Nc4 {[%clk 0:01:37.3]} 23... Bxc4
{[%clk 0:01:38.3]} 24. Bxc4 {[%clk 0:01:29.9]} 24... Qa5 {[%clk 0:01:37.3]} 25.
Qd6+ {[%clk 0:01:01.7]} 25... Kg8 {[%clk 0:01:37.2]} 26. f5 {[%clk 0:00:57.8]}
26... Bf8 {[%clk 0:01:30]} 27. Qc6 {[%clk 0:00:51.6]} 27... gxf5 {[%clk
0:01:23.4]} 28. Qxa8 {[%clk 0:00:49.2]} 1-0

[Event "Early-Titled-Tuesday-Blitz-September-26-2023"]
[Site "Chess.com"]
[Date "2023.09.26"]
[Round "8"]
[White "Crazy_girl99"]
[Black "WPWPWP-2015"]
[Result "1-0"]
[WhiteElo "2722"]
[BlackElo "2529"]
[TimeControl "180+1"]
[EndTime "9:26:57 PDT"]
[Termination "Crazy_girl99 won by resignation"]

1. e4 {[%clk 0:03:00.9]} 1... e5 {[%clk 0:02:57.1]} 2. Nf3 {[%clk 0:03:00.8]}
2... Nf6 {[%clk 0:02:57]} 3. Nxe5 {[%clk 0:02:59]} 3... d6 {[%clk 0:02:57.2]} 4.
Nf3 {[%clk 0:02:59.3]} 4... Nxe4 {[%clk 0:02:57.5]} 5. Nc3 {[%clk 0:02:59.9]}
5... Nxc3 {[%clk 0:02:57.1]} 6. dxc3 {[%clk 0:03:00.8]} 6... Be7 {[%clk
0:02:57.4]} 7. Bd3 {[%clk 0:03:01.3]} 7... O-O {[%clk 0:02:57.3]} 8. Bf4 {[%clk
0:03:01.9]} 8... Nd7 {[%clk 0:02:56.9]} 9. O-O {[%clk 0:03:01.7]} 9... Nc5
{[%clk 0:02:56.6]} 10. Re1 {[%clk 0:03:01.5]} 10... Nxd3 {[%clk 0:02:55]} 11.
Qxd3 {[%clk 0:02:59.1]} 11... Bf6 {[%clk 0:02:54.8]} 12. Rad1 {[%clk 0:02:59.1]}
12... h6 {[%clk 0:02:52.3]} 13. Nd4 {[%clk 0:02:56]} 13... Bd7 {[%clk
0:02:43.2]} 14. Qf3 {[%clk 0:02:53]} 14... Qc8 {[%clk 0:02:38.2]} 15. h3 {[%clk
0:02:52.4]} 15... Bf5 {[%clk 0:01:43.5]} 16. Bxd6 {[%clk 0:02:24.8]} 16... Bxc2
{[%clk 0:00:58.1]} 17. Nxc2 {[%clk 0:02:17.7]} 17... cxd6 {[%clk 0:00:57.9]} 18.
Rxd6 {[%clk 0:02:17.7]} 18... Qc4 {[%clk 0:00:53.2]} 19. Rxf6 {[%clk 0:02:00.9]}
19... gxf6 {[%clk 0:00:52.1]} 20. Re4 {[%clk 0:02:01.6]} 20... Qc6 {[%clk
0:00:38]} 21. Nd4 {[%clk 0:02:01.5]} 21... Qc5 {[%clk 0:00:17.1]} 22. Qxf6
{[%clk 0:01:57.9]} 22... Kh7 {[%clk 0:00:16.4]} 23. Nf5 {[%clk 0:01:48.4]} 1-0

[Event "Early-Titled-Tuesday-Blitz-September-26-2023"]
[Site "Chess.com"]
[Date "2023.09.26"]
[Round "8"]
[White "Kostukov_Alex"]
[Black "Nasrin_Babayeva"]
[Result "1-0"]
[WhiteElo "2390"]
[BlackElo "1895"]
[TimeControl "180+1"]
[EndTime "9:27:03 PDT"]
[Termination "Kostukov_Alex won by resignation"]

1. g3 {[%clk 0:02:54.4]} 1... f5 {[%clk 0:02:58.6]} 2. Bg2 {[%clk 0:02:48.1]}
2... Nf6 {[%clk 0:02:58.3]} 3. d4 {[%clk 0:02:49]} 3... g6 {[%clk 0:02:58.4]} 4.
c4 {[%clk 0:02:49.6]} 4... Bg7 {[%clk 0:02:58.5]} 5. Nf3 {[%clk 0:02:50.2]} 5...
d6 {[%clk 0:02:58.8]} 6. O-O {[%clk 0:02:51.1]} 6... O-O {[%clk 0:02:59]} 7. Nc3
{[%clk 0:02:51.6]} 7... Qe8 {[%clk 0:02:56.8]} 8. d5 {[%clk 0:02:51.1]} 8... c6
{[%clk 0:02:56.4]} 9. Rb1 {[%clk 0:02:51]} 9... a5 {[%clk 0:02:54.1]} 10. b3
{[%clk 0:02:50.4]} 10... Na6 {[%clk 0:02:41]} 11. Bb2 {[%clk 0:02:49.7]} 11...
Nc5 {[%clk 0:02:38.5]} 12. Nd4 {[%clk 0:02:49.2]} 12... e5 {[%clk 0:02:24.2]}
13. dxe6 {[%clk 0:02:45]} 13... Nxe6 {[%clk 0:02:18]} 14. Nxe6 {[%clk
0:02:37.7]} 14... Qxe6 {[%clk 0:02:18.9]} 15. Na4 {[%clk 0:02:33.1]} 15... Rd8
{[%clk 0:01:46.7]} 16. Nb6 {[%clk 0:02:31]} 16... Rb8 {[%clk 0:01:43.2]} 17. Qd2
{[%clk 0:02:27.9]} 17... Ne4 {[%clk 0:01:29.2]} 18. Qxa5 {[%clk 0:02:26.2]}
18... Bxb2 {[%clk 0:01:09]} 19. Rxb2 {[%clk 0:02:26.2]} 19... Qf6 {[%clk
0:01:06.5]} 20. Rc2 {[%clk 0:02:10.8]} 20... Be6 {[%clk 0:01:00.1]} 21. e3
{[%clk 0:02:06.3]} 21... d5 {[%clk 0:00:59.1]} 22. cxd5 {[%clk 0:02:04]} 22...
Bxd5 {[%clk 0:01:00]} 23. Rd1 {[%clk 0:01:52.4]} 23... Qe5 {[%clk 0:00:47.2]}
24. Nxd5 {[%clk 0:01:39.7]} 24... Rxd5 {[%clk 0:00:48.1]} 25. Rxd5 {[%clk
0:01:39.3]} 25... Qxd5 {[%clk 0:00:44.4]} 26. Qxd5+ {[%clk 0:01:38.9]} 26...
cxd5 {[%clk 0:00:45.3]} 27. Bxe4 {[%clk 0:01:36.8]} 27... dxe4 {[%clk
0:00:43.2]} 28. Rc7 {[%clk 0:01:37.2]} 28... Ra8 {[%clk 0:00:42.9]} 29. a4
{[%clk 0:01:37]} 29... Rb8 {[%clk 0:00:39.3]} 30. a5 {[%clk 0:01:35.9]} 1-0

[Event "Early-Titled-Tuesday-Blitz-September-26-2023"]
[Site "Chess.com"]
[Date "2023.09.26"]
[Round "8"]
[White "Alphafischer2019"]
[Black "Boxerandchessplayer"]
[Result "1-0"]
[WhiteElo "2592"]
[BlackElo "2186"]
[TimeControl "180+1"]
[EndTime "9:27:04 PDT"]
[Termination "Alphafischer2019 won by resignation"]

1. Nf3 {[%clk 0:03:00.9]} 1... e6 {[%clk 0:03:00.9]} 2. b3 {[%clk 0:03:01.2]}
2... d5 {[%clk 0:02:58.7]} 3. Bb2 {[%clk 0:03:01.6]} 3... Nf6 {[%clk 0:02:58.3]}
4. e3 {[%clk 0:03:01.6]} 4... Be7 {[%clk 0:02:58.4]} 5. d4 {[%clk 0:02:59.8]}
5... O-O {[%clk 0:02:58.7]} 6. Bd3 {[%clk 0:02:59]} 6... a6 {[%clk 0:02:56.2]}
7. O-O {[%clk 0:02:58.9]} 7... b5 {[%clk 0:02:55.8]} 8. Nbd2 {[%clk 0:02:56.5]}
8... c5 {[%clk 0:02:53.4]} 9. dxc5 {[%clk 0:02:54.7]} 9... Bxc5 {[%clk
0:02:52.9]} 10. Qe2 {[%clk 0:02:55.1]} 10... Bb7 {[%clk 0:02:52.7]} 11. e4
{[%clk 0:02:55]} 11... dxe4 {[%clk 0:02:42.7]} 12. Nxe4 {[%clk 0:02:55.5]} 12...
Be7 {[%clk 0:02:43.2]} 13. Rad1 {[%clk 0:02:51.1]} 13... Nxe4 {[%clk 0:02:29.4]}
14. Bxe4 {[%clk 0:02:51.1]} 14... Qb6 {[%clk 0:02:30.2]} 15. Bd4 {[%clk
0:02:44.7]} 15... Qc7 {[%clk 0:02:28.6]} 16. Ne5 {[%clk 0:02:25.4]} 16... Bf6
{[%clk 0:02:15.6]} 17. Bxb7 {[%clk 0:01:58.7]} 17... Qxb7 {[%clk 0:02:12.2]} 18.
Qg4 {[%clk 0:01:58.3]} 18... Kh8 {[%clk 0:02:04.7]} 19. h3 {[%clk 0:01:48.7]}
19... Bxe5 {[%clk 0:01:34.6]} 20. Bxe5 {[%clk 0:01:48.6]} 20... f6 {[%clk
0:01:35.5]} 21. Bxb8 {[%clk 0:01:44.3]} 21... Raxb8 {[%clk 0:01:33.1]} 22. Qxe6
{[%clk 0:01:45]} 22... Rbc8 {[%clk 0:01:24.3]} 23. Rd7 {[%clk 0:01:43.6]} 23...
Qc6 {[%clk 0:01:15.7]} 24. Qg4 {[%clk 0:01:22.8]} 24... Rg8 {[%clk 0:01:12.6]}
25. Rd2 {[%clk 0:01:20]} 25... Qc3 {[%clk 0:01:10.2]} 26. Rfd1 {[%clk
0:01:18.6]} 26... Qb2 {[%clk 0:01:06.2]} 27. c4 {[%clk 0:01:17.1]} 27... Qc3
{[%clk 0:00:59.4]} 28. Qxc8 {[%clk 0:01:13.8]} 1-0

[Event "Early-Titled-Tuesday-Blitz-September-26-2023"]
[Site "Chess.com"]
[Date "2023.09.26"]
[Round "8"]
[White "Gabix_94"]
[Black "MKlose11"]
[Result "1-0"]
[WhiteElo "2715"]
[BlackElo "2604"]
[TimeControl "180+1"]
[EndTime "9:27:05 PDT"]
[Termination "Gabix_94 won by checkmate"]

1. d4 {[%clk 0:02:51]} 1... Nf6 {[%clk 0:02:59.6]} 2. Nc3 {[%clk 0:02:51.2]}
2... d5 {[%clk 0:02:59.1]} 3. Bf4 {[%clk 0:02:51.9]} 3... e6 {[%clk 0:02:55.8]}
4. Nb5 {[%clk 0:02:51.2]} 4... Na6 {[%clk 0:02:55.3]} 5. e3 {[%clk 0:02:51]}
5... c6 {[%clk 0:02:54.5]} 6. Nc3 {[%clk 0:02:51.4]} 6... Be7 {[%clk 0:02:54.7]}
7. h4 {[%clk 0:02:48.4]} 7... Nc7 {[%clk 0:02:52.1]} 8. Nf3 {[%clk 0:02:48.7]}
8... b6 {[%clk 0:02:50.3]} 9. Ne5 {[%clk 0:02:48.1]} 9... Bb7 {[%clk 0:02:49.3]}
10. Bd3 {[%clk 0:02:48.6]} 10... c5 {[%clk 0:02:44.3]} 11. Qf3 {[%clk
0:02:43.2]} 11... Rb8 {[%clk 0:02:39.9]} 12. dxc5 {[%clk 0:02:30.4]} 12... bxc5
{[%clk 0:02:37.2]} 13. O-O-O {[%clk 0:02:30]} 13... O-O {[%clk 0:02:25.7]} 14.
h5 {[%clk 0:02:22.5]} 14... Qc8 {[%clk 0:02:25.1]} 15. Qg3 {[%clk 0:02:20.5]}
15... Kh8 {[%clk 0:02:18.4]} 16. h6 {[%clk 0:02:18.7]} 16... g6 {[%clk
0:02:18.3]} 17. Nxf7+ {[%clk 0:02:08.4]} 17... Rxf7 {[%clk 0:02:17.4]} 18. Bxc7
{[%clk 0:02:09.2]} 18... Ra8 {[%clk 0:02:13.6]} 19. Be5 {[%clk 0:02:08.9]} 19...
c4 {[%clk 0:02:09]} 20. Be2 {[%clk 0:02:06.9]} 20... Kg8 {[%clk 0:02:02.5]} 21.
Rd4 {[%clk 0:01:57.7]} 21... Nd7 {[%clk 0:02:01.3]} 22. Bg7 {[%clk 0:01:53.8]}
22... Qb8 {[%clk 0:01:39.5]} 23. f4 {[%clk 0:01:49.6]} 23... Bf6 {[%clk
0:01:35.6]} 24. Bg4 {[%clk 0:01:49]} 24... Qd6 {[%clk 0:01:33.9]} 25. Ne4 {[%clk
0:01:47.1]} 25... Qb6 {[%clk 0:01:28.4]} 26. Nxf6+ {[%clk 0:01:45.5]} 26... Nxf6
{[%clk 0:01:29.3]} 27. f5 {[%clk 0:01:36.3]} 27... exf5 {[%clk 0:01:25.7]} 28.
Bxf5 {[%clk 0:01:35.7]} 28... Ne8 {[%clk 0:00:57.7]} 29. Bg4 {[%clk 0:01:28.2]}
29... Nxg7 {[%clk 0:00:53.3]} 30. hxg7 {[%clk 0:01:29.1]} 30... Rxg7 {[%clk
0:00:54.2]} 31. Qe5 {[%clk 0:01:26.6]} 31... Rf8 {[%clk 0:00:47.5]} 32. Be6+
{[%clk 0:01:25.3]} 32... Kh8 {[%clk 0:00:48]} 33. Rxh7+ {[%clk 0:01:25.5]} 33...
Kxh7 {[%clk 0:00:45.7]} 34. Rh4# {[%clk 0:01:26.4]} 1-0